[Event "*** Titled Tuesday Blitz"]
[Site "Chess.com"]
[Date "2018.06.05"]
[Round "3"]
[White "GMBenjaminBok"]
[Black "Raja3401"]
[Result "0-1"]
[WhiteElo "2557"]
[BlackElo "2390"]
[TimeControl "180+2"]
[EndTime "13:43:05 PDT"]
[Termination "Raja3401 won by resignation"]

1. c4 {[%clk 0:03:01.9]} 1... e5 {[%clk 0:02:58.9]} 2. g3 {[%clk 0:03:02.1]}
2... Nf6 {[%clk 0:02:59.7]} 3. Bg2 {[%clk 0:03:03.4]} 3... Nc6 {[%clk
0:02:53.6]} 4. Nc3 {[%clk 0:03:03.6]} 4... Bc5 {[%clk 0:02:50.4]} 5. e3 {[%clk
0:03:04.1]} 5... d6 {[%clk 0:02:44.8]} 6. Nge2 {[%clk 0:03:04.2]} 6... O-O
{[%clk 0:02:43.5]} 7. O-O {[%clk 0:03:04.2]} 7... Re8 {[%clk 0:02:37.9]} 8. d4
{[%clk 0:02:56.8]} 8... exd4 {[%clk 0:02:39.8]} 9. exd4 {[%clk 0:02:56.9]} 9...
Bb6 {[%clk 0:02:41.1]} 10. h3 {[%clk 0:02:49.4]} 10... Bf5 {[%clk 0:02:39]} 11.
b3 {[%clk 0:02:50.3]} 11... Qd7 {[%clk 0:02:38.3]} 12. Kh2 {[%clk 0:02:50.6]}
12... h5 {[%clk 0:02:28.6]} 13. Bg5 {[%clk 0:02:34.3]} 13... Ne4 {[%clk
0:02:23.7]} 14. Be3 {[%clk 0:02:32.1]} 14... h4 {[%clk 0:01:52.4]} 15. g4 {[%clk
0:02:31.7]} 15... Bg6 {[%clk 0:01:50.3]} 16. Rc1 {[%clk 0:02:28.9]} 16... Nf6
{[%clk 0:01:21.8]} 17. Qd2 {[%clk 0:02:07.9]} 17... Ba5 {[%clk 0:01:16.5]} 18.
Qd1 {[%clk 0:01:56.8]} 18... Ne4 {[%clk 0:01:14.6]} 19. Nd5 {[%clk 0:01:54.1]}
19... Ne7 {[%clk 0:00:49.1]} 20. Ndf4 {[%clk 0:01:22.3]} 20... d5 {[%clk
0:00:41]} 21. cxd5 {[%clk 0:01:17]} 21... Nxd5 {[%clk 0:00:39.5]} 22. Nxd5
{[%clk 0:01:16.9]} 22... Qxd5 {[%clk 0:00:39.9]} 23. Rc5 {[%clk 0:01:15.4]}
23... Qd6+ {[%clk 0:00:35.3]} 24. Bf4 {[%clk 0:01:16.3]} 24... Qa6 {[%clk
0:00:32.9]} 25. Re5 {[%clk 0:01:09.4]} 25... f6 {[%clk 0:00:26.8]} 26. Rxe8+
{[%clk 0:01:05]} 26... Rxe8 {[%clk 0:00:28.7]} 27. Be3 {[%clk 0:01:06.2]} 27...
c6 {[%clk 0:00:27]} 28. Nf4 {[%clk 0:01:04.7]} 28... Bf7 {[%clk 0:00:27.9]} 29.
Qc2 {[%clk 0:01:04.2]} 29... Bc7 {[%clk 0:00:20.1]} 30. Kg1 {[%clk 0:01:00.8]}
30... Ng3 {[%clk 0:00:21.2]} 31. fxg3 {[%clk 0:00:41.4]} 31... Rxe3 {[%clk
0:00:22.4]} 32. gxh4 {[%clk 0:00:38.9]} 32... Bxf4 {[%clk 0:00:22.6]} 33. Rxf4
{[%clk 0:00:38.8]} 33... Re2 {[%clk 0:00:23.9]} 34. Qf5 {[%clk 0:00:19.7]} 34...
Qxa2 {[%clk 0:00:23.1]} 35. Bf1 {[%clk 0:00:18.3]} 35... Re8 {[%clk 0:00:21.6]}
36. g5 {[%clk 0:00:15.3]} 36... Qxb3 {[%clk 0:00:21]} 37. Qg4 {[%clk 0:00:06]}
37... Re3 {[%clk 0:00:20.5]} 38. Kh2 {[%clk 0:00:05]} 38... Qb2+ {[%clk
0:00:17.8]} 39. Bg2 {[%clk 0:00:06.2]} 39... Bd5 {[%clk 0:00:18.1]} 40. gxf6
{[%clk 0:00:07]} 40... Qxg2+ {[%clk 0:00:17.2]} 41. Qxg2 {[%clk 0:00:08.3]}
41... Bxg2 {[%clk 0:00:19.1]} 42. Kxg2 {[%clk 0:00:08.8]} 42... gxf6 {[%clk
0:00:19.6]} 43. Rxf6 {[%clk 0:00:10.3]} 43... a5 {[%clk 0:00:21.1]} 44. Rd6
{[%clk 0:00:11]} 44... Kf7 {[%clk 0:00:19]} 45. d5 {[%clk 0:00:12]} 45... cxd5
{[%clk 0:00:16.8]} 46. Rxd5 {[%clk 0:00:13.9]} 46... a4 {[%clk 0:00:16.2]} 47.
Rb5 {[%clk 0:00:14.4]} 47... Rb3 {[%clk 0:00:17.4]} 48. Ra5 {[%clk 0:00:15.1]}
48... b5 {[%clk 0:00:18.2]} 49. h5 {[%clk 0:00:15.8]} 49... a3 {[%clk
0:00:18.8]} 50. h6 {[%clk 0:00:16.4]} 50... Kg8 {[%clk 0:00:09.2]} 51. Ra7
{[%clk 0:00:16.9]} 51... b4 {[%clk 0:00:10.7]} 52. h7+ {[%clk 0:00:17.7]} 52...
Kh8 {[%clk 0:00:11.6]} 53. h4 {[%clk 0:00:19]} 53... Rc3 {[%clk 0:00:12.9]} 54.
Kf2 {[%clk 0:00:19.4]} 54... Rc2+ {[%clk 0:00:13.1]} 55. Kg3 {[%clk 0:00:20.6]}
55... a2 {[%clk 0:00:14.7]} 56. Kg4 {[%clk 0:00:21.8]} 56... b3 {[%clk
0:00:16.1]} 57. Kg5 {[%clk 0:00:22.9]} 57... b2 {[%clk 0:00:17.4]} 58. Rxa2
{[%clk 0:00:07.9]} 58... b1=Q {[%clk 0:00:18.4]} 59. Ra8+ {[%clk 0:00:09]} 59...
Kxh7 {[%clk 0:00:19.3]} 60. Ra7+ {[%clk 0:00:10.9]} 60... Kg8 {[%clk 0:00:20.6]}
61. Ra8+ {[%clk 0:00:12.8]} 61... Kf7 {[%clk 0:00:22]} 62. Ra7+ {[%clk
0:00:14.7]} 62... Ke6 {[%clk 0:00:23.4]} 63. Ra8 {[%clk 0:00:16.6]} 63... Rc5+
{[%clk 0:00:23.7]} 0-1

[Event "*** Titled Tuesday Blitz"]
[Site "Chess.com"]
[Date "2018.06.05"]
[Round "3"]
[White "vpantev"]
[Black "korason34"]
[Result "1/2-1/2"]
[WhiteElo "2454"]
[BlackElo "2465"]
[TimeControl "180+2"]
[EndTime "13:43:09 PDT"]
[Termination "Game drawn by agreement"]

1. d4 {[%clk 0:03:00.5]} 1... Nf6 {[%clk 0:03:00.4]} 2. Nf3 {[%clk 0:02:58.9]}
2... e6 {[%clk 0:03:00.8]} 3. Bf4 {[%clk 0:02:58.8]} 3... d5 {[%clk 0:03:01.1]}
4. e3 {[%clk 0:02:59.3]} 4... Bd6 {[%clk 0:03:01.9]} 5. Bg3 {[%clk 0:02:59.5]}
5... O-O {[%clk 0:03:02.7]} 6. Nbd2 {[%clk 0:02:58.4]} 6... c5 {[%clk
0:03:01.2]} 7. c3 {[%clk 0:02:59.1]} 7... b6 {[%clk 0:02:49]} 8. Bd3 {[%clk
0:02:55.3]} 8... Nc6 {[%clk 0:02:48.7]} 9. Qb1 {[%clk 0:02:53.2]} 9... h6 {[%clk
0:02:34.1]} 10. O-O {[%clk 0:02:50.4]} 10... a5 {[%clk 0:02:30.4]} 11. a3 {[%clk
0:02:50.6]} 11... Ba6 {[%clk 0:02:30.5]} 12. Bxa6 {[%clk 0:02:46.6]} 12... Rxa6
{[%clk 0:02:32.4]} 13. Qd3 {[%clk 0:02:47]} 13... Ra8 {[%clk 0:02:24.8]} 14. a4
{[%clk 0:02:47]} 14... Bxg3 {[%clk 0:02:20]} 15. hxg3 {[%clk 0:02:47.1]} 15...
Qd6 {[%clk 0:02:20.5]} 16. Rfe1 {[%clk 0:02:42.1]} 16... e5 {[%clk 0:02:17.3]}
17. dxe5 {[%clk 0:02:42.2]} 17... Nxe5 {[%clk 0:02:19.2]} 18. Nxe5 {[%clk
0:02:43.2]} 18... Qxe5 {[%clk 0:02:21.1]} 19. Nf3 {[%clk 0:02:44.5]} 19... Qe6
{[%clk 0:02:17.9]} 20. Qb5 {[%clk 0:02:43.7]} 20... Rfd8 {[%clk 0:02:14.7]} 21.
Rad1 {[%clk 0:02:43.6]} 21... Rd6 {[%clk 0:02:13.4]} 22. Rd3 {[%clk 0:02:41.5]}
22... Rad8 {[%clk 0:02:13]} 23. Red1 {[%clk 0:02:42]} 23... Ne4 {[%clk
0:01:34.7]} 24. Nd2 {[%clk 0:02:37.9]} 24... Nf6 {[%clk 0:01:29.2]} 25. Nf3
{[%clk 0:02:38.1]} 25... Ne4 {[%clk 0:01:29.9]} 26. Nd2 {[%clk 0:02:37.8]} 26...
Nf6 {[%clk 0:01:31.2]} 27. Nf3 {[%clk 0:02:38]} 27... Ne4 {[%clk 0:01:32.2]} 28.
Re1 {[%clk 0:02:37.2]} 28... Qf5 {[%clk 0:01:30.1]} 29. Rdd1 {[%clk 0:02:35.4]}
29... g5 {[%clk 0:01:30.1]} 30. Qe2 {[%clk 0:02:36]} 30... Rf6 {[%clk
0:01:29.5]} 31. Rf1 {[%clk 0:02:35.7]} 31... Qe6 {[%clk 0:01:25.5]} 32. Nd2
{[%clk 0:02:35.3]} 32... Nxd2 {[%clk 0:01:24.4]} 33. Rxd2 {[%clk 0:02:35.6]}
33... Qc6 {[%clk 0:01:26]} 34. Qb5 {[%clk 0:02:35.7]} 34... Qxb5 {[%clk
0:01:26.5]} 35. axb5 {[%clk 0:02:36.1]} 35... Rfd6 {[%clk 0:01:27.6]} 36. Rfd1
{[%clk 0:02:36.8]} 36... f5 {[%clk 0:01:28.6]} 37. c4 {[%clk 0:02:32.9]} 37...
d4 {[%clk 0:01:28.6]} 38. Kf1 {[%clk 0:02:32.6]} 38... Kf7 {[%clk 0:01:29.1]}
39. Ke2 {[%clk 0:02:33.3]} 39... Kf6 {[%clk 0:01:30.3]} 40. exd4 {[%clk
0:02:31.8]} 40... cxd4 {[%clk 0:01:31]} 41. Kd3 {[%clk 0:02:30]} 41... Re6
{[%clk 0:01:31.1]} 42. Rc1 {[%clk 0:02:30]} 42... Re5 {[%clk 0:01:27.4]} 43. b3
{[%clk 0:02:27]} 43... Rd6 {[%clk 0:01:22.2]} 44. Re2 {[%clk 0:02:24.5]} 44...
Rxe2 {[%clk 0:01:21.5]} 45. Kxe2 {[%clk 0:02:25.2]} 45... f4 {[%clk 0:00:55]}
46. g4 {[%clk 0:02:25.2]} 46... d3+ {[%clk 0:00:48.8]} 47. Kd2 {[%clk
0:02:25.8]} 47... f3 {[%clk 0:00:37.5]} 48. gxf3 {[%clk 0:02:19.8]} 48... Ke5
{[%clk 0:00:38.1]} 49. c5 {[%clk 0:02:19]} 49... bxc5 {[%clk 0:00:38.1]} 50.
Rxc5+ {[%clk 0:02:19.7]} 50... Kd4 {[%clk 0:00:35.9]} 51. Rc3 {[%clk 0:02:16]}
51... Rb6 {[%clk 0:00:36.2]} 52. Rxd3+ {[%clk 0:02:14.2]} 52... Ke5 {[%clk
0:00:36]} 53. Kc3 {[%clk 0:02:14]} 53... Rxb5 {[%clk 0:00:36]} 54. Kd2 {[%clk
0:02:14.8]} 54... Kf4 {[%clk 0:00:35.7]} 55. Ke2 {[%clk 0:02:15.5]} 55... Ke5
{[%clk 0:00:26.9]} 56. Kf1 {[%clk 0:02:12.8]} 56... Rb4 {[%clk 0:00:27.3]} 57.
Kg2 {[%clk 0:02:13.2]} 57... a4 {[%clk 0:00:28]} 58. bxa4 {[%clk 0:02:13.3]}
58... Rxa4 {[%clk 0:00:29.9]} 59. Rb3 {[%clk 0:02:13.4]} 59... Kf6 {[%clk
0:00:30.8]} 60. Rb6+ {[%clk 0:02:12.6]} 60... Kg7 {[%clk 0:00:31.6]} 61. Rb5
{[%clk 0:02:13.3]} 61... Rc4 {[%clk 0:00:32.2]} 62. Kg3 {[%clk 0:02:14]} 62...
Ra4 {[%clk 0:00:32.9]} 63. Rf5 {[%clk 0:02:14.3]} 63... Ra3 {[%clk 0:00:34]} 64.
Kg2 {[%clk 0:02:14.7]} 64... Ra4 {[%clk 0:00:34.5]} 65. f4 {[%clk 0:02:15.1]}
65... gxf4 {[%clk 0:00:28.6]} 66. Kf3 {[%clk 0:02:15.9]} 66... Kg6 {[%clk
0:00:27.5]} 67. Rxf4 {[%clk 0:02:14.4]} 67... Ra3+ {[%clk 0:00:27.9]} 68. Kg2
{[%clk 0:02:15.1]} 68... h5 {[%clk 0:00:28.6]} 69. gxh5+ {[%clk 0:02:13.7]}
69... Kxh5 {[%clk 0:00:30.5]} 70. Rf8 {[%clk 0:02:14]} 70... Kg6 {[%clk
0:00:30.3]} 71. Rg8+ {[%clk 0:02:13.6]} 71... Kf7 {[%clk 0:00:30.8]} 72. Rg3
{[%clk 0:02:13]} 72... Ra4 {[%clk 0:00:30.6]} 73. Kh3 {[%clk 0:02:12.6]} 73...
Rb4 {[%clk 0:00:29.3]} 74. Rg4 {[%clk 0:02:13.4]} 74... Rb3+ {[%clk 0:00:29.3]}
75. Rg3 {[%clk 0:02:12.9]} 75... Rb4 {[%clk 0:00:29.4]} 76. f3 {[%clk
0:02:13.8]} 76... Kf6 {[%clk 0:00:29.5]} 77. Rg1 {[%clk 0:02:12.8]} 77... Kf5
{[%clk 0:00:29.7]} 78. Kg3 {[%clk 0:02:13.2]} 78... Rb8 {[%clk 0:00:27.6]} 79.
Ra1 {[%clk 0:02:13.5]} 79... Rg8+ {[%clk 0:00:28.1]} 80. Kf2 {[%clk 0:02:14.4]}
80... Rb8 {[%clk 0:00:28.7]} 81. Ra4 {[%clk 0:02:13.4]} 81... Rb1 {[%clk
0:00:25.9]} 82. Rc4 {[%clk 0:02:12.6]} 82... Ra1 {[%clk 0:00:24.9]} 83. Kg3
{[%clk 0:02:13.5]} 83... Rg1+ {[%clk 0:00:25.5]} 84. Kf2 {[%clk 0:02:14.6]}
84... Ra1 {[%clk 0:00:27.1]} 85. Rc5+ {[%clk 0:02:15.5]} 85... Kf4 {[%clk
0:00:27.8]} 86. Rc2 {[%clk 0:02:16.4]} 86... Rb1 {[%clk 0:00:27.5]} 87. Rc4+
{[%clk 0:02:17]} 87... Kf5 {[%clk 0:00:28.1]} 1/2-1/2

[Event "*** Titled Tuesday Blitz"]
[Site "Chess.com"]
[Date "2018.06.05"]
[Round "3"]
[White "florianschwabeneder"]
[Black "1stSecond"]
[Result "0-1"]
[WhiteElo "2377"]
[BlackElo "2600"]
[TimeControl "180+2"]
[EndTime "13:43:13 PDT"]
[Termination "1stSecond won by resignation"]

1. e4 {[%clk 0:03:01.8]} 1... e5 {[%clk 0:02:58.9]} 2. Nf3 {[%clk 0:03:02.4]}
2... Nc6 {[%clk 0:02:59.6]} 3. Bb5 {[%clk 0:03:03.4]} 3... a6 {[%clk 0:03:00.3]}
4. Ba4 {[%clk 0:03:04.6]} 4... Nf6 {[%clk 0:03:00.9]} 5. O-O {[%clk 0:03:05.5]}
5... Be7 {[%clk 0:03:01.2]} 6. Bxc6 {[%clk 0:03:06.3]} 6... dxc6 {[%clk
0:03:01]} 7. d3 {[%clk 0:03:07.5]} 7... Nd7 {[%clk 0:02:59.5]} 8. a4 {[%clk
0:03:08.1]} 8... O-O {[%clk 0:02:57.4]} 9. Nbd2 {[%clk 0:03:07.8]} 9... f6
{[%clk 0:02:53]} 10. Nh4 {[%clk 0:03:06.2]} 10... Nc5 {[%clk 0:02:46.8]} 11. Nf5
{[%clk 0:03:02.9]} 11... Ne6 {[%clk 0:01:43.2]} 12. Nf3 {[%clk 0:02:48.6]} 12...
Rf7 {[%clk 0:01:39.5]} 13. Nxe7+ {[%clk 0:02:23.9]} 13... Rxe7 {[%clk
0:01:36.4]} 14. Be3 {[%clk 0:02:23.4]} 14... c5 {[%clk 0:01:36.5]} 15. Nh4
{[%clk 0:02:17.5]} 15... Bd7 {[%clk 0:01:17.5]} 16. Nf5 {[%clk 0:02:15.4]} 16...
Rf7 {[%clk 0:01:03.6]} 17. b3 {[%clk 0:02:12.5]} 17... Be8 {[%clk 0:01:00.2]}
18. Qg4 {[%clk 0:02:06.7]} 18... Kh8 {[%clk 0:00:37.4]} 19. Nh6 {[%clk
0:01:55.6]} 19... Re7 {[%clk 0:00:38.1]} 20. Nf5 {[%clk 0:01:56.2]} 20... Rd7
{[%clk 0:00:38.9]} 21. f4 {[%clk 0:01:55.6]} 21... exf4 {[%clk 0:00:37.7]} 22.
Bxf4 {[%clk 0:01:56.4]} 22... Nxf4 {[%clk 0:00:37.8]} 23. Rxf4 {[%clk
0:01:51.8]} 23... b5 {[%clk 0:00:20.9]} 24. axb5 {[%clk 0:01:40.6]} 24... axb5
{[%clk 0:00:22.8]} 25. Raf1 {[%clk 0:01:41.3]} 25... Ra2 {[%clk 0:00:22.5]} 26.
Ne3 {[%clk 0:01:26.4]} 26... Rf7 {[%clk 0:00:22.1]} 27. Qg3 {[%clk 0:01:23]}
27... Qd6 {[%clk 0:00:20.2]} 28. h4 {[%clk 0:01:20.4]} 28... Bd7 {[%clk
0:00:19.1]} 29. Kh1 {[%clk 0:01:19.7]} 29... Qe5 {[%clk 0:00:19]} 30. Qf2 {[%clk
0:01:15]} 30... Be6 {[%clk 0:00:18.9]} 31. g4 {[%clk 0:01:12.9]} 31... Kg8
{[%clk 0:00:19.3]} 32. g5 {[%clk 0:01:11.2]} 32... c4 {[%clk 0:00:16.5]} 33.
bxc4 {[%clk 0:00:56.4]} 33... bxc4 {[%clk 0:00:17.7]} 34. dxc4 {[%clk
0:00:51.3]} 34... Ra3 {[%clk 0:00:07.4]} 35. gxf6 {[%clk 0:00:49.3]} 35... g6
{[%clk 0:00:08.8]} 36. Kg1 {[%clk 0:00:42.9]} 36... c6 {[%clk 0:00:09.2]} 37.
Qd2 {[%clk 0:00:39.1]} 37... h5 {[%clk 0:00:08.9]} 38. Qd8+ {[%clk 0:00:37.9]}
38... Kh7 {[%clk 0:00:09.8]} 39. Qd2 {[%clk 0:00:37.9]} 39... Qc5 {[%clk
0:00:10.1]} 40. R4f3 {[%clk 0:00:35.1]} 40... Bxc4 {[%clk 0:00:11.3]} 41. Re1
{[%clk 0:00:32.1]} 41... Be6 {[%clk 0:00:12.5]} 42. Qf2 {[%clk 0:00:32.7]} 42...
Qe5 {[%clk 0:00:12.7]} 43. Ng2 {[%clk 0:00:21.5]} 43... Rxf3 {[%clk 0:00:13]}
44. Qxf3 {[%clk 0:00:22.2]} 44... Rxf6 {[%clk 0:00:14.9]} 45. Qe3 {[%clk
0:00:19.2]} 45... Bc4 {[%clk 0:00:09.7]} 46. c3 {[%clk 0:00:18.8]} 46... Kg7
{[%clk 0:00:09.1]} 47. Qd4 {[%clk 0:00:18.3]} 47... Qxd4+ {[%clk 0:00:06.7]} 48.
cxd4 {[%clk 0:00:20.2]} 48... Be6 {[%clk 0:00:07.6]} 49. Rd1 {[%clk 0:00:18.4]}
49... Kf7 {[%clk 0:00:08.4]} 50. Rc1 {[%clk 0:00:17.9]} 50... Bg4 {[%clk
0:00:09]} 51. Re1 {[%clk 0:00:15.7]} 51... Ke7 {[%clk 0:00:09.2]} 52. Ra1 {[%clk
0:00:15.4]} 52... Bf3 {[%clk 0:00:10.1]} 53. e5 {[%clk 0:00:15.8]} 53... Rf8
{[%clk 0:00:10.1]} 54. Ra7+ {[%clk 0:00:15.5]} 54... Ke6 {[%clk 0:00:11.5]} 55.
Ne3 {[%clk 0:00:15.3]} 55... Be4 {[%clk 0:00:12.6]} 56. Ra6 {[%clk 0:00:09.9]}
56... Rf3 {[%clk 0:00:12.9]} 57. Nc4 {[%clk 0:00:06.6]} 57... Rf4 {[%clk
0:00:08.9]} 58. Nd6 {[%clk 0:00:07]} 58... Bd5 {[%clk 0:00:10]} 59. Ra8 {[%clk
0:00:06.9]} 59... Rxd4 {[%clk 0:00:08.5]} 60. Re8+ {[%clk 0:00:07.9]} 60... Kd7
{[%clk 0:00:10]} 61. Rh8 {[%clk 0:00:07.2]} 61... Rxh4 {[%clk 0:00:10.9]} 0-1

[Event "*** Titled Tuesday Blitz"]
[Site "Chess.com"]
[Date "2018.06.05"]
[Round "3"]
[White "enriquetejedor"]
[Black "Micki-taryan"]
[Result "0-1"]
[WhiteElo "2545"]
[BlackElo "2825"]
[TimeControl "180+2"]
[EndTime "13:43:14 PDT"]
[Termination "Micki-taryan won by checkmate"]

1. d4 {[%clk 0:03:01.9]} 1... Nf6 {[%clk 0:03:00.5]} 2. Nf3 {[%clk 0:03:03.1]}
2... e6 {[%clk 0:03:01.5]} 3. Bf4 {[%clk 0:03:04.2]} 3... b6 {[%clk 0:03:02.3]}
4. c3 {[%clk 0:03:05.1]} 4... Bb7 {[%clk 0:03:04.2]} 5. Nbd2 {[%clk 0:03:06.4]}
5... Bd6 {[%clk 0:03:05.5]} 6. Bg3 {[%clk 0:03:06.7]} 6... Nc6 {[%clk
0:03:03.5]} 7. e3 {[%clk 0:03:07.6]} 7... Ne7 {[%clk 0:03:04.3]} 8. Bd3 {[%clk
0:03:07.8]} 8... Bxg3 {[%clk 0:03:02.2]} 9. hxg3 {[%clk 0:03:08.9]} 9... d5
{[%clk 0:03:02.1]} 10. O-O {[%clk 0:03:09.6]} 10... O-O {[%clk 0:03:02.5]} 11.
Qe2 {[%clk 0:03:11.1]} 11... g6 {[%clk 0:03:00.6]} 12. Ne5 {[%clk 0:03:10.5]}
12... Kg7 {[%clk 0:03:00.5]} 13. a4 {[%clk 0:03:09.2]} 13... a5 {[%clk
0:02:59.9]} 14. Rfc1 {[%clk 0:03:09.6]} 14... Nf5 {[%clk 0:02:57.5]} 15. b4
{[%clk 0:03:09.2]} 15... Nd6 {[%clk 0:02:58]} 16. Nb3 {[%clk 0:03:08.9]} 16...
Nd7 {[%clk 0:02:32]} 17. Nxd7 {[%clk 0:03:03.7]} 17... Qxd7 {[%clk 0:02:33]} 18.
bxa5 {[%clk 0:03:05.3]} 18... bxa5 {[%clk 0:02:34.5]} 19. Nc5 {[%clk 0:03:06.9]}
19... Qe7 {[%clk 0:02:32.5]} 20. Qb2 {[%clk 0:02:55.7]} 20... Bc6 {[%clk
0:02:32.4]} 21. Rcb1 {[%clk 0:02:54.8]} 21... Qf6 {[%clk 0:02:21.1]} 22. Ra3
{[%clk 0:02:51.6]} 22... h5 {[%clk 0:02:14.4]} 23. Qe2 {[%clk 0:02:36]} 23... h4
{[%clk 0:01:59.8]} 24. Qf3 {[%clk 0:02:36.8]} 24... Qxf3 {[%clk 0:01:51.4]} 25.
gxf3 {[%clk 0:02:38.7]} 25... hxg3 {[%clk 0:01:45.3]} 26. fxg3 {[%clk
0:02:40.6]} 26... Rfb8 {[%clk 0:01:45.2]} 27. Rab3 {[%clk 0:02:36.6]} 27... Rxb3
{[%clk 0:01:46.1]} 28. Rxb3 {[%clk 0:02:38.5]} 28... Nc4 {[%clk 0:01:46.7]} 29.
Kf2 {[%clk 0:02:30.9]} 29... Rh8 {[%clk 0:01:43.6]} 30. Bxc4 {[%clk 0:02:31.9]}
30... dxc4 {[%clk 0:01:44.3]} 31. Ra3 {[%clk 0:02:21.7]} 31... Rh2+ {[%clk
0:01:24.4]} 32. Kg1 {[%clk 0:02:22.6]} 32... Rc2 {[%clk 0:01:24.2]} 33. e4
{[%clk 0:02:23]} 33... g5 {[%clk 0:01:25]} 34. Kf1 {[%clk 0:02:21.4]} 34... Kf8
{[%clk 0:01:24.7]} 35. Na6 {[%clk 0:02:16.8]} 35... g4 {[%clk 0:01:23.1]} 36.
Nb8 {[%clk 0:01:54.2]} 36... Ba8 {[%clk 0:01:13.4]} 37. fxg4 {[%clk 0:01:43.4]}
37... Bxe4 {[%clk 0:01:14.3]} 38. Nd7+ {[%clk 0:01:40]} 38... Ke7 {[%clk
0:01:15.5]} 39. Ne5 {[%clk 0:01:39.8]} 39... Bd5 {[%clk 0:01:14.4]} 40. g5
{[%clk 0:01:39.7]} 40... f6 {[%clk 0:00:58]} 41. gxf6+ {[%clk 0:01:41.6]} 41...
Kxf6 {[%clk 0:00:59.9]} 42. g4 {[%clk 0:01:39.4]} 42... Kg5 {[%clk 0:01:01.2]}
43. Ke1 {[%clk 0:01:40.1]} 43... Rb2 {[%clk 0:00:55]} 44. Kd1 {[%clk 0:01:40]}
44... Kf4 {[%clk 0:00:55.9]} 45. Kc1 {[%clk 0:01:39.6]} 45... Rh2 {[%clk
0:00:56.7]} 46. Ra1 {[%clk 0:01:38.2]} 46... Ke3 {[%clk 0:00:56.9]} 47. Rb1
{[%clk 0:01:21.2]} 47... Be4 {[%clk 0:00:56.8]} 48. Rb5 {[%clk 0:00:51.9]} 48...
Rc2+ {[%clk 0:00:57]} 49. Kd1 {[%clk 0:00:49.9]} 49... Rxc3 {[%clk 0:00:57.4]}
50. g5 {[%clk 0:00:41.1]} 50... Kxd4 {[%clk 0:00:57.3]} 51. Rxa5 {[%clk
0:00:33.8]} 51... c5 {[%clk 0:00:57.4]} 52. Nd7 {[%clk 0:00:19.5]} 52... Ke3
{[%clk 0:00:52.1]} 53. Ne5 {[%clk 0:00:10.2]} 53... Kd4 {[%clk 0:00:49]} 54. Nd7
{[%clk 0:00:10]} 54... Rg3 {[%clk 0:00:30.2]} 55. Rxc5 {[%clk 0:00:07.7]} 55...
c3 {[%clk 0:00:28.8]} 56. Ke2 {[%clk 0:00:05]} 56... c2 {[%clk 0:00:29.1]} 57.
a5 {[%clk 0:00:02.7]} 57... Rg1 {[%clk 0:00:29.1]} 58. a6 {[%clk 0:00:02.8]}
58... c1=Q {[%clk 0:00:29.2]} 59. Rxc1 {[%clk 0:00:04.7]} 59... Rxc1 {[%clk
0:00:30.6]} 60. Nb6 {[%clk 0:00:03]} 60... Ra1 {[%clk 0:00:30.5]} 61. Na8 {[%clk
0:00:02.7]} 61... Ra2+ {[%clk 0:00:32.4]} 62. Ke1 {[%clk 0:00:03.1]} 62... Bxa8
{[%clk 0:00:34.3]} 63. g6 {[%clk 0:00:04.3]} 63... Ke3 {[%clk 0:00:34.3]} 64.
Kf1 {[%clk 0:00:04.7]} 64... Ra1# {[%clk 0:00:33.1]} 0-1